Cogmind - Beta 15 @@@ ROGUE MODE // 2025.07.08 @ 17:29:37 Player: Skysub Result: Destroyed by 9Y-H5V(R) with Subdweller Machine Gun Performance ------------- Evolutions (0) 0 Regions Visited (2) 400 Robots Destroyed (29) 145 Value Destroyed (566) 566 Prototype IDs (0) 0 Alien Tech Used (0) 0 Bonus (0) 0 TOTAL SCORE: 1111 Bonus ------- None Cogmind --------- Core Integrity 0/250 Matter 190/300 Energy 250/250 System Corruption 5% Temperature Cool (0) Movement Treading (240) Ox1 Location -10/Subcaves Parts ------- > --- POWER (1) -------- Ion Engine (fused) > --- PROPULSION (2) --- Improved Treads Wheel > --- UTILITY (2) ------ Large Storage Unit Structural Scanner > --- WEAPON (2) ------- Light Assault Rifle Grenade Launcher > --- INVENTORY (15) --- Light Ion Engine Light Treads Improved Treads Improved Treads Wheel Wheel Improved Heat Sink Light Assault Rifle Shotgun Shotgun Mini Grenade Launcher Mining Claw Peak State ------------ > --- POWER ------------ Ion Engine > --- PROPULSION ------- Improved Treads Wheel > --- UTILITY ---------- Large Storage Unit Light Armor Plating > --- WEAPON ----------- Light Assault Rifle Shotgun > --- INVENTORY -------- Light Ion Engine Light Treads Improved Treads Improved Treads Wheel Wheel Improved Heat Sink Structural Scanner Light Assault Rifle Shotgun Grenade Launcher Mini Grenade Launcher Mining Claw [Rating: 10] Favorites ----------- Power Ion Engine Engine Ion Engine Propulsion Light Treads Treads Light Treads Wheel Wheel Utility Large Storage Unit Device Structural Scanner Storage Large Storage Unit Protection Light Armor Plating Weapon Light Assault Rifle Ballistic Gun Light Assault Rifle Launcher Grenade Launcher Build | -11 -10 -10 ------- Run | Yrd Mat Sub Slots Evolved . | . . . Power . | . . . Propulsion . | . . . Utility . | . . . Weapon . | . . . Parts Attached 15 | 6 8 1 Power 2 | 1 1 . Engine 2 | 1 1 . Core . | . . . Reactor . | . . . Propulsion 5 | 2 3 . Treads 4 | 2 2 . Leg . | . . . Wheel 1 | . 1 . Hover . | . . . Flight . | . . . Utility 4 | 1 3 . Device 1 | . 1 . Storage 2 | 1 1 . Processor . | . . . Hackware . | . . . Protection 1 | . 1 . Artifact . | . . . Weapon 4 | 2 1 1 Energy Gun . | . . . Energy Cannon . | . . . Ballistic Gun 3 | 2 1 . Ballistic Cannon . | . . . Launcher 1 | . . 1 Special Weapon . | . . . Impact Weapon . | . . . Slashing Weapon . | . . . Piercing Weapon . | . . . Special Melee Weapon . | . . . Unidentified Prototypes . | . . . Parts Lost 5 | . 5 . Power 1 | . 1 . Propulsion 2 | . 2 . Utility 1 | . 1 . Weapon 1 | . 1 . Highest Loss Streak 3 | . 3 . To Critical Strikes . | . . . Average Backups 8 | 1 8 12 Power . | . . 1 Propulsion 2 | . 2 5 Utility . | . 1 1 Weapon 4 | . 4 5 Tool/Special . | . . . Unused Backups 11 | . 1 10 Power 1 | . . 1 Propulsion 4 | . . 4 Utility 1 | . . 1 Weapon 5 | . 1 4 Tool/Special . | . . . Average Slot Usage (%) 91 | . 90 97 Engine 13 | . 13 14 Treads 21 | . 22 14 Wheel 5 | . 4 14 Device 2 | . 1 11 Storage 14 | . 14 14 Protection 4 | . 5 . Ballistic Gun 27 | . 27 24 Peak Build Rating 10 | 6 10 10 Average Rating 7 | 5 7 9 On Entrance 5 | . 6 9 Naked Turns . | . . . Heaviest Build 32 | 13 32 30 Greatest Support 40 | 40 40 23 Greatest Overweight (x) 3 | 2 3 1 Average Overweight (x) . | . . 1 Largest Inventory Capacity 15 | 8 15 15 Average Capacity 11 | 7 12 15 Most Carried 13 | 3 13 13 Average Carried 8 | 1 8 12 Final Capacity 15 | 8 15 15 Final Carried 13 | 3 13 12 Class Distribution -------------------- 100% | Mutant Dominant Class ---------------- Mutant | -10/Materials Mutant | -10/Subcaves Resources | -11 -10 -10 ----------- Run | Yrd Mat Sub Matter Collected 704 | 304 400 . Remotely . | . . . Salvage Created 761 | 113 636 12 Parts 67 | 12 54 1 Haulers Intercepted . | . . . Recyclers Shooed . | . . . Parts Field Recycled . | . . . Retrieved Matter . | . . . Parts Self-Destructed . | . . . Prevented . | . . . Kills | -11 -10 -10 ------- Run | Yrd Mat Sub Combat Hostiles Destroyed 19 | . 18 1 Guns 18 | . 18 . AOE 1 | . . 1 Classes Destroyed 6 | 2 3 1 Worker 4 | 2 2 . Builder 3 | . 3 . Tunneler 3 | 3 . . Swarmer 6 | . 6 . Grunt 12 | . 12 . Sentry 1 | . . 1 Best Kill Streak 6 | 3 6 1 Combat Bots Only 6 | . 6 1 Max Kills in Single Turn 2 | 2 2 1 Gunslinging . | . . . Exploded 1 | . . 1 Melee . | . . . Uniques/NPCs Destroyed . | . . . Combat | -11 -10 -10 -------- Run | Yrd Mat Sub Hostile Shots Fired 112 | . 91 21 Missed 34 | . 25 9 Hits 78 | . 66 12 Projectile 78 | . 66 12 Critical Strikes 1 | . . 1 Damage Taken 1010 | . 717 293 Core 251 | . 116 135 Absorbed by Shields . | . . . Core Remaining (%) 100 | 100 . . Volleys Fired 86 | 11 69 6 Largest 2 | 2 2 2 Hottest 50 | 40 43 50 Shots Fired 170 | 22 137 11 Gun 165 | 22 137 6 Cannon . | . . . Launcher 5 | . . 5 Special . | . . . Kinetic 165 | 22 137 6 Thermal . | . . . Explosive 5 | . . 5 Electromagnetic . | . . . Robot Hit Streak 11 | 7 11 5 Robot Miss Streak 4 | 1 4 1 Penetration Max . | . . . Secondary Targets . | . . . Shots Hit Robots 118 | 16 94 8 Core Hits 50 | 8 39 3 Critical Kills 2 | . 2 . Critical Parts Destroyed . | . . . Critical Strikes 2 | . 2 . Destroy 2 | . 2 . Melee Attacks . | . . . Impact . | . . . Slashing . | . . . Piercing . | . . . Sneak Attacks . | . . . Combat Hostiles . | . . . Follow-up Attacks . | . . . Damage Inflicted 1380 | 197 1084 99 Guns 1306 | 197 1082 27 Cannons . | . . . Explosions 72 | . . 72 Melee . | . . . Ramming 2 | . 2 . Kinetic 1306 | 197 1082 27 Thermal . | . . . Explosive 72 | . . 72 Electromagnetic . | . . . Impact . | . . . Slashing . | . . . Piercing . | . . . Highest Corruption 5 | . 5 5 Average Corruption 4 | . 4 5 Corruption Purged . | . . . Corruption Blocked . | . . . Effects 35 | . 32 3 Message Errors 8 | . 7 1 Matter Fused 8 | . 8 . Heat Flow Errors 4 | . 4 . Energy Discharges 3 | . 2 1 Parts Rejected 1 | . 1 . Parts Fused 1 | . 1 . Data Loss (minor) 5 | . 4 1 Data Loss (major) 1 | . 1 . Misfires 2 | . 2 . Weapon Failures 2 | . 2 . Overload Shots . | . . . Overflow Damage . | . . . Projectiles . | . . . Explosions . | . . . Melee . | . . . Knockbacks . | . . . Impact . | . . . Kinetic . | . . . Secondary . | . . . Self-Inflicted Damage . | . . . Shots . | . . . Rammed 1 | . 1 . Targets Rammed 1 | . 1 . Kicked . | . . . Crushed . | . . . Highest Temperature 144 | . 144 . Average Temperature 19 | . 19 . Received Heat Transfer 393 | . 330 63 Siege Activations . | . . . Martial Activations . | . . . Shielding Activations . | . . . Robots Disrupted . | . . . Combat Hostiles . | . . . Robots Corrupted . | . . . Combat Hostiles . | . . . Parts Fried . | . . . Impact Corruptions . | . . . Robots Melted . | . . . Combat Hostiles . | . . . Parts Melted . | . . . Heat Transferred . | . . . Parts Sabotaged . | . . . Parts Stolen . | . . . Parts Stripped . | . . . Power Chain Reactions . | . . . Alert | -11 -10 -10 ------- Run | Yrd Mat Sub Maximum Alert Level . | . . . Low Security (%) 100 | 100 100 . Level 1 . | . . . Level 2 . | . . . Level 3 . | . . . Level 4 . | . . . Level 5 . | . . . High Security . | . . . Max Security . | . . . Peak Influence 128 | 15 128 . Initial . | . . . Average 43 | 1 49 . Influence Increases 597 | 25 552 20 Destroy 0b10 Robot/C 380 | . 360 20 Destroy 0b10 Robot/NC 50 | 25 25 . Destroy Leader 70 | . 70 . Successful Hack 22 | . 22 . Select Force Hacks 60 | . 60 . Lose Combat Pursuer 15 | . 15 . Influence Decreases 587 | 25 548 14 Entered New Map 3 | . . 3 Time Decay 534 | 25 498 11 Lost Part 50 | . 50 . Squads Dispatched 4 | . 4 . Investigation 3 | . 3 . Extermination . | . . . Reinforcement 1 | . 1 . Assault . | . . . Garrison . | . . . Intercept . | . . . Searches Triggered . | . . . Construction Impeded . | . . . Haulers Reinforced . | . . . Active Scanning Responses . | . . . Cargo Convoy Interrupts . | . . . Stealth | -11 -10 -10 --------- Run | Yrd Mat Sub Distress Signals 1 | . 1 . Communications Jammed . | . . . Distress Signals . | . . . Times Spotted 29 | . 26 3 Peak Tracking Total 8 | . 8 2 Tactical Retreats 1 | . 1 . Traps | -11 -10 -10 ------- Run | Yrd Mat Sub Traps Triggered 7 | . 5 2 Indirectly . | . . . Trap Hack Attempts . | . . . Triggered . | . . . Disarmed . | . . . Reprogrammed . | . . . Reused . | . . . Traps Extracted . | . . . Installed . | . . . Triggered . | . . . Machines | -11 -10 -10 ---------- Run | Yrd Mat Sub Machines Disabled . | . . . Max in Single Turn . | . . . Machines Repaired . | . . . Machines Dismantled . | . . . Machines Sabotaged . | . . . Overloaded Fab Kills . | . . . Hacking | -11 -10 -10 --------- Run | Yrd Mat Sub Machines Accessed 8 | . 8 . Terminals 6 | . 6 . Fabricators . | . . . Repair Stations . | . . . Recycling Units 2 | . 2 . Scanalyzers . | . . . Garrison Access . | . . . Total Hacks 28 | . 28 . Successful 16 | . 16 . Failed 12 | . 12 . Catastrophic 1 | . 1 . Database Lockouts . | . . . Manual 21 | . 21 . Terminals 20 | . 20 . Fabricators . | . . . Repair Stations . | . . . Recycling Units 8 | . 8 . Scanalyzers . | . . . Garrison Access . | . . . Terminal Hacks 2 | . 2 . Dispatch Records 1 | . 1 . Zone Layout 1 | . 1 . Fabricator Hacks . | . . . Repair Station Hacks . | . . . Recycling Unit Hacks 4 | . 4 . Report Inventory 2 | . 2 . Retrieve Components 2 | . 2 . Scanalyzer . | . . . Garrison Access Hacks . | . . . Unauthorized Hacks 10 | . 10 . Terminals 8 | . 8 . Botnet 2 | . 2 . Skim 6 | . 6 . Fabricators . | . . . Repair Stations . | . . . Recycling Units 2 | . 2 . Tunnel 2 | . 2 . Scanalyzers . | . . . Garrison Access . | . . . Data Cores Recovered . | . . . Used . | . . . Hacking Detections 6 | . 6 . Full Trace Events 1 | . 1 . Feedback Events . | . . . Feedback Blocked . | . . . Robot Schematics Acquired . | . . . Robots Built . | . . . Authchips . | . . . Time . | . . . Total Robot Build Rating . | . . . Part Schematics Acquired . | . . . Parts Built . | . . . Authchips . | . . . Time . | . . . Total Part Build Rating . | . . . Parts Repaired . | . . . Time . | . . . Parts Recycled . | . . . Recycled Matter . | . . . Retrieved Matter . | . . . Retrieved Components 11 | . 11 . Parts Scanalyzed . | . . . Part Schematics Acquired . | . . . Parts Damaged . | . . . Bothacking | -11 -10 -10 ------------ Run | Yrd Mat Sub Used RIF Installer . | . . . Robots Hacked . | . . . Non-combat . | . . . Combat . | . . . Robot Hacks Applied . | . . . Relay Couplers Released . | . . . Fabnet Peak Effective % . | . . . Robots Rewired . | . . . Allies Hacked . | . . . Hacks Repelled . | . . . Allies | -11 -10 -10 -------- Run | Yrd Mat Sub Total Allies . | . . . Largest Group . | . . . Highest-Rated Group . | . . . Highest-Rated Ally . | . . . Total Orders . | . . . Ally Attacks . | . . . Total Damage . | . . . Kills . | . . . Allies Corrupted . | . . . Allies Melted . | . . . Intel | -11 -10 -10 ------- Run | Yrd Mat Sub Active Infowar (turns) 320 | . 186 134 Structural 320 | . 186 134 Robot Analysis Total . | . . . Derelict Logs Recovered . | . . . Drone Launches . | . . . Drone Recoveries . | . . . Exploration | -11 -10 -10 ------------- Run | Yrd Mat Sub Turns Passed 1886 | 215 1520 151 Spaces Moved 755 | 115 586 54 Core 14 | 14 . . Treads 636 | 101 481 54 Legs . | . . . Wheels 105 | . 105 . Hover . | . . . Flight . | . . . Fastest Speed 50 | 50 125 240 Average Speed 168 | 150 165 240 Slowest Speed 240 | 160 240 240 Overloaded Moves . | . . . Propulsion Burnouts . | . . . Robots Hopped . | . . . Potential Cave-ins . | . . . Cave-ins Triggered . | . . . Exploration Rate (%) 37 | 7 95 9 Regions Visited 2 Branch Regions 1 Pre-discovered Areas 4 | . 4 . Known Exits Taken . | . . . Unknown Exits Taken 2 | 1 1 . Scrap Searched . | . . . Spaces Dug . | . . . Terrain Destroyed 12 | . . 12 Melee . | . . . Projectile . | . . . AOE 12 | . . 12 Terrain Rammed . | . . . Walls Destroyed . | . . . Machines Disabled . | . . . Actions | -11 -10 -10 --------- Run | Yrd Mat Sub Total 1209 | 134 1013 62 Wait 331 | . 331 . Move 753 | 114 585 54 Hop . | . . . Pick Up 17 | 3 14 . Fast Attach 10 | 6 4 . Attach 5 | . 4 1 Detach . | . . . Swap 4 | . 3 1 Drop 2 | . 2 . Fire 86 | 11 69 6 Melee . | . . . Ram . | . . . Kick . | . . . Crush 1 | . 1 . Escape Stasis . | . . . Rewire . | . . . Trap . | . . . Miscellaneous . | . . . Route ------- -11/Scrapyard -10/Materials (discovered 5 exits: *Mat x3 / *Min / [*Sub]) -10/Subcaves (discovered 3 exits: Mat x2 / Rec) History --------- Turn | Location | Event 50 | -11/Scrapyard | Discovered new exit (range 16) 216 | -11/Scrapyard | Entered Materials 312 | -10/Materials | Build established: Mutant 441 | -10/Materials | Discovered new exit (range 3) 553 | -10/Materials | Discovered new exit (range 16) 975 | -10/Materials | Lost 3 parts (1p1n1w) 1121 | -10/Materials | Discovered new exit (range 9) 1346 | -10/Materials | Discovered new exit (range 16) 1536 | -10/Materials | Discovered new exit (range 9) 1544 | -10/Materials | Learned Storage security intel 1586 | -10/Materials | Learned location of 3 exits from Materials 1638 | -10/Materials | Learned 2 Storage zone layouts 1650 | -10/Materials | Learned Storage security intel 1652 | -10/Materials | Learned 4 Subcaves zone layouts 1653 | -10/Materials | Identified exit to Materials 1653 | -10/Materials | Identified exit to Mines 1654 | -10/Materials | Learned 4 Recycling zone layouts 1664 | -10/Materials | Learned location of Subcaves (-10) 1711 | -10/Materials | Learned location of Storage (-7) 1736 | -10/Materials | Entered Subcaves 1737 | -10/Subcaves | Approached by a straggling Scientist 1737 | -10/Subcaves | Identified exit to Materials 1738 | -10/Subcaves | Identified exit to Recycling 1767 | -10/Subcaves | Core integrity fell below 50% 1880 | -10/Subcaves | Core integrity fell below 20% 1887 | -10/Subcaves | Destroyed by 9Y-H5V(R) with Subdweller Machine Gun Last Messages --------------- 01740_ FX-E4E(c): "Hey, let me tag along and I can get us both out of this nasty situation. At least I think I can... The group I got separated from was talking about a shortcut back to the UFD." 01766_ Triggered Piercing Trap. 01766_ Spikes shoot up from the floor. 01766_ Critical hit (Impale). 01776_ Triggered Piercing Trap. 01776_ Spikes shoot up from the floor. 01783_ FX-E4E(c) triggered Piercing Trap. 01783_ Spikes shoot up from the floor. 01783_ FX-E4E(c) suffers critical hit (Impale). FX-E4E(c): "I think it's somewhere southwest of here" 01822_ System corrupted: Component data lost. FX-E4E(c): "I think it's somewhere southwest of here" 01844_ Critical hit (Burn: +37). 01853_ System corrupted: Energy discharge (-50). 01871_ #O7